Workbook

Sheet Sheet1
A1: 2020年光明集团农机购置补贴对象、结算明细汇总表
A2: 享受补贴单位（对象） | C2: 序 号 | D2: 小 类 | E2: 品 目 | F2: 生产企业名称 | G2: 产品型号 | H2: 分类名称 | I2: 数量 (台/套) | J2: 单价/台 （元） | K2: 总价 (万元) | L2: 单台补贴（万元） | N2: 补贴合计(万元) | Q2: 企业自筹 (万元) | R2: 备注
L3: 中央 | M3: 市 | N3: 中央 | O3: 市 | P3: 合计
A4: 崇明农场 | B4: 上海跃进现代农业有限公司 | C4: 1 | D4: 拖拉机 | E4: 轮式拖拉机 | F4: 道依茨法尔机械有限公司 | G4: SH554 | H4: 50—60马力四轮驱动拖拉机 | I4: 25 | J4: 8.0780 | K4: 201.9500 | L4: 1.6100 | M4: 0.9200 | N4: =L4*I4 -> 40.2500 | O4: =M4*I4 -> 23.0000 | P4: =N4+O4 -> 63.2500 | Q4: =K4-P4 -> 138.7000
C5: 2 | D5: 播种 机械 | E5: 水稻直播机（穴播机） | F5: 滁州禾田农业机械有限公司 | G5: 2BDZ-12A(HTZ1220) | H5: 12行及以上，自走四轮乘坐式水稻直播机 | I5: 10 | J5: 12.2000 | K5: 122.0000 | L5: 1.5000 | M5: 3.3000 | N5: =L5*I5 -> 15.0000 | O5: =M5*I5 -> 33.0000 | P5: =N5+O5 -> 48.0000 | Q5: =K5-P5 -> 74.0000
C6: 3 | D6: 茎秆收集处理机械 | E6: 秸秆粉碎还田机 | F6: 河北圣和农业机械有限公司 | G6: 1JQ-230 | H6: 2—2.5m秸秆粉碎还田机 | I6: 10 | J6: 1.2900 | K6: 12.9000 | L6: 0.2200 | M6: 0.1800 | N6: =L6*I6 -> 2.2000 | O6: =M6*I6 -> 1.8000 | P6: =N6+O6 -> 4.0000 | Q6: 8.9000
C7: 4 | D7: 拖拉机 | E7: 轮式拖拉机 | F7: 中国一拖集团有限公司 | G7: 东方红954 | H7: 90—100马力四轮驱动拖拉机 | I7: 21 | J7: 15.6800 | K7: 329.2800 | L7: 3.2100 | M7: 2.4500 | N7: =L7*I7 -> 67.4100 | O7: =M7*I7 -> 51.4500 | P7: =N7+O7 -> 118.8600 | Q7: =K7-P7 -> 210.4200
C8: 5 | D8: 拖拉机 | E8: 轮式拖拉机 | F8: 徐州凯尔农业装备股份有限公司 | G8: KAT1404 | H8: 140—160马力四轮驱动拖拉机 | I8: 1 | J8: 28.5000 | K8: 28.5000 | L8: 4.4100 | M8: 3.5300 | N8: =L8*I8 -> 4.4100 | O8: =M8*I8 -> 3.5300 | P8: =N8+O8 -> 7.9400 | Q8: =K8-P8 -> 20.5600
B9: 上海长江逸浩林业有限公司 | C9: 1 | D9: 拖拉机 | E9: 轮式拖拉机（不含皮带传动轮式拖拉机） | F9: 第一拖拉机股份有限公司 | G9: 东方红MF404 | H9: 40—50马力四轮驱动拖拉机 | I9: 1 | J9: 5.8800 | K9: 5.8800 | L9: 1.2600 | M9: 0.7900 | N9: 1.2600 | O9: 0.7900 | P9: 2.0500 | Q9: 3.8300
B10: 光明田原生态农业有限公司 | C10: 1 | D10: 植保机械 | E10: 遥控飞行喷雾机 | F10: 广州极飞科技有限公司 | G10: P30 | H10: 载药量15L及以上植保无人飞机 | I10: 2 | J10: 5.5499 | K10: 11.0998 | L10: 0.0000 | M10: 2.0000 | N10: 0.0000 | O10: 4.0000 | P10: 4.0000 | Q10: 7.0998
A11: 良友米业 | B11: 上海光明长江现代农业有限公司（第一批） | C11: 1 | D11: 谷物收获机械 | E11: 自走轮式谷物联合收割机（全喂入） | F11: 约翰·迪尔(佳木斯)农业机械有限公司 | G11: 4LZ-13C(C440) | H11: 11kg/s及以上自走轮式谷物联合收割机（全喂入） | I11: 6 | J11: 86.2525 | K11: =I11*J11 -> 517.5150 | L11: 4.4900 | M11: 7.0000 | N11: =I11*L11 -> 26.9400 | O11: =I11*M11 -> 42.0000 | P11: =N11+O11 -> 68.9400 | Q11: 448.5750
C12: 2 | D12: 拖拉机 | E12: 轮式拖拉机（不含皮带传动轮式拖拉机） | F12: 第一拖拉机股份有限公司 | G12: LX1504 | H12: 140—160马力四轮驱动拖拉机 | I12: 1 | J12: 22.5000 | K12: 22.5000 | L12: 4.4100 | M12: 3.5300 | N12: =I12*L12 -> 4.4100 | O12: =I12*M12 -> 3.5300 | P12: =N12+O12 -> 7.9400 | Q12: =K12-P12 -> 14.5600
C13: 3 | D13: 拖拉机 | E13: 轮式拖拉机（不含皮带传动轮式拖拉机） | F13: 江苏悦达智能农业装备有限公司 | G13: 黄海金马—404D | H13: 40-50马力四轮驱动拖拉机 | I13: 2 | J13: 4.1800 | K13: 8.3600 | L13: 1.2600 | M13: 0.7900 | N13: 2.5200 | O13: 1.5800 | P13: 4.1000 | Q13: 4.2600
C14: 4 | D14: 拖拉机 | E14: 轮式拖拉机（不含皮带传动轮式拖拉机） | F14: 第一拖拉机股份有限公司 | G14: LX904（高花胎） | H14: 90-100马力四轮驱动拖拉机 | I14: 46 | J14: 15.1800 | K14: 698.2800 | L14: 3.2100 | M14: 2.4500 | N14: 147.6600 | O14: 112.7000 | P14: 260.3600 | Q14: 437.9200
C15: 5 | D15: 拖拉机 | E15: 轮式拖拉机（不含皮带传动轮式拖拉机） | F15: 第一拖拉机股份有限公司 | G15: LX904（平花胎） | H15: 90-100马力四轮驱动拖拉机 | I15: 10 | J15: 15.0800 | K15: 150.8000 | L15: 3.2100 | M15: 2.4500 | N15: 32.1000 | O15: 24.5000 | P15: 56.6000 | Q15: 94.2000
C16: 6 | D16: 耕地机械 | E16: 开沟深度50cm以下配套轮式拖拉机开沟机 | F16: 上海浦东张桥农机有限公司 | G16: 1KJ-35 | H16: 单圆盘开沟机 | I16: 6 | J16: 0.5600 | K16: 3.3600 | L16: 0.1000 | M16: 0.1200 | N16: 0.6000 | O16: 0.7200 | P16: 1.3200 | Q16: 2.0400
C17: 7 | D17: 施肥机械 | E17: 配套动力20kw及以上施肥机 | F17: 上海世达尔现代农机有限公司 | G17: 2FS-1200 | H17: 施肥机（化肥） | I17: 4 | J17: 2.0500 | K17: 8.2000 | L17: 0.0700 | M17: 0.0900 | N17: 0.2800 | O17: 0.3600 | P17: 0.6400 | Q17: 7.5600
C18: 8 | D18: 植保机械 | E18: 遥控飞行喷雾机 | F18: 广州极飞科技有限公司 | G18: P30 | H18: 载药量15L及以上植保无人飞机 | I18: 10 | J18: 5.0499 | K18: 50.4990 | L18: 0.0000 | M18: 2.0000 | N18: 0.0000 | O18: 20.0000 | P18: 20.0000 | Q18: 30.4990
B19: 上海光明长江现代农业有限公司（第二批） | C19: 1 | D19: 谷物收获机械 | E19: 自走轮式谷物联合收割机 | F19: 约翰·迪尔(佳木斯)农业机械有限公司 | G19: 4LZ-13C(C440) | H19: 9kg/s及以上自走轮式谷物联合收割机（全喂入） | I19: 3 | J19: 86.2525 | K19: 258.7575 | L19: 4.4900 | M19: 7.0000 | N19: 13.4700 | O19: 21.0000 | P19: 34.4700 | Q19: 224.2875
C20: 2 | D20: 谷物收获机械 | E20: 自走轮式谷物联合收割机 | F20: 约翰·迪尔(佳木斯)农业机械有限公司 | G20: 4LZ-13C(C440) | H20: 9kg/s及以上自走轮式谷物联合收割机（全喂入） | I20: 3 | J20: 85.7309 | K20: 257.1927 | L20: 4.4900 | M20: 7.0000 | N20: 13.4700 | O20: 21.0000 | P20: 34.4700 | Q20: 222.7227
C21: 2 | D21: 拖拉机 | E21: 轮式拖拉机 | F21: 第一拖拉机股份有限公司 | G21: LX1504 | H21: 140—160马力四轮驱动拖拉机 | I21: 4 | J21: 22.5000 | K21: 90.0000 | L21: 4.4100 | M21: 3.5300 | N21: 17.6400 | O21: 14.1200 | P21: 31.7600 | Q21: 58.2400
C22: 3 | D22: 拖拉机 | E22: 轮式拖拉机 | F22: 乐星农业装备(青岛)有限公司 | G22: LS904 | H22: 90—100马力四轮驱动拖拉机 | I22: 10 | J22: 15.5000 | K22: 155.0000 | L22: 3.2100 | M22: 2.4500 | N22: 32.1000 | O22: 24.5000 | P22: 56.6000 | Q22: 98.4000
C23: 4 | D23: 拖拉机 | E23: 轮式拖拉机 | F23: 第一拖拉机股份有限公司 | G23: LX904（平花胎） | H23: 90-100马力四轮驱动拖拉机 | I23: 7 | J23: 15.0800 | K23: 105.5600 | L23: 3.2100 | M23: 2.4500 | N23: 22.4700 | O23: 17.1500 | P23: 39.6200 | Q23: 65.9400
C24: 5 | D24: 拖拉机 | E24: 轮式拖拉机 | F24: 江苏悦达智能农业装备有限公司 | G24: 黄海金马—404D | H24: 40-50马力四轮驱动拖拉机 | I24: 14 | J24: 4.1800 | K24: 58.5200 | L24: 1.2600 | M24: 0.7900 | N24: 17.6400 | O24: 11.0600 | P24: 28.7000 | Q24: 29.8200
C25: 6 | D25: 其他机械 | E25: 农业用北斗终端（含渔船用） | F25: 上海华测导航技术股份有限公司 | G25: 领航员NX300 | H25: 电动方向盘,直线精度±10cm的北斗导航辅助驾驶系统 | I25: 12 | J25: 6.0000 | K25: 72.0000 | L25: 2.0000 | M25: 1.5000 | N25: 24.0000 | O25: 18.0000 | P25: 42.0000 | Q25: 30.0000
C26: 7 | D26: 植保机械 | E26: 遥控飞行喷雾机 | F26: 深圳市大疆创新科技有限公司 | G26: 3WWDZ-15.1B | H26: 载药量15L及以上植保无人飞机 | I26: 1 | J26: 8.5000 | K26: 8.5000 | M26: 2.0000 | N26: 0.0000 | O26: 2.0000 | P26: 2.0000 | Q26: 6.5000
B27: 上海海丰现代农业有限公司 | C27: 1 | D27: 茎秆收集处理机械 | E27: 秸秆粉碎还田机 | F27: 石家庄农业机械股份有限公司 | G27: 1JH-220 | H27: 2—2.5m秸秆粉碎还田机 | I27: 2 | J27: 1.2880 | K27: 2.5760 | L27: 0.2200 | M27: 0.1800 | N27: 0.4400 | O27: 0.3600 | P27: 0.8000 | Q27: 1.7760
C28: 2 | D28: 整地机械 | E28: 圆盘耙 | F28: 徐州凯城机械有限公司 | G28: 1BZ-3.5 | H28: 3—3.5m圆盘耙 | I28: 4 | J28: 2.0000 | K28: 8.0000 | L28: 0.2500 | M28: 0.4000 | N28: 1.0000 | O28: 1.6000 | P28: 2.6000 | Q28: 5.4000
C29: 3 | D29: 拖拉机 | E29: 轮式拖拉机（不含皮带传动轮式拖拉机） | F29: 第一拖拉机股份有限公司 | G29: LD1804 | H29: 180—200马力四轮驱动拖拉机 | I29: 2 | J29: 34.5000 | K29: 69.0000 | L29: 7.6600 | M29: 5.4100 | N29: 15.3200 | O29: 10.8200 | P29: 26.1400 | Q29: 42.8600
C30: 4 | D30: 拖拉机 | E30: 轮式拖拉机（不含皮带传动轮式拖拉机） | F30: 徐州凯尔农业装备股份有限公司 | G30: KAT1104 | H30: 100—120马力四轮驱动拖拉机 | I30: 2 | J30: 24.5000 | K30: 49.0000 | L30: 3.2100 | M30: 2.4500 | N30: =I30*L30 -> 6.4200 | O30: =I30*M30 -> 4.9000 | P30: =N30+O30 -> 11.3200 | Q30: =K30-P30 -> 37.6800
C31: 5 | D31: 其他机械 | E31: 农业用北斗终端（含渔船用） | F31: 南京沃杨机械科技有限公司 | G31: KM-502 | H31: 液压控制转向机，直线精度±2.5cm的北斗导航自动驾驶系统 | I31: 2 | J31: 8.0000 | K31: 16.0000 | L31: 3.0000 | M31: 1.5000 | N31: =I31*L31 -> 6.0000 | O31: =I31*M31 -> 3.0000 | P31: =N31+O31 -> 9.0000 | Q31: =K31-P31 -> 7.0000
B32: 光明米业农业技术中心 | C32: 1 | D32: 拖拉机 | E32: 轮式拖拉机 | F32: 道依茨法尔机械有限公司 | G32: SH504 | H32: 50—60马力四轮驱动拖拉机 | I32: 2 | J32: 8.0780 | K32: 16.1560 | L32: 1.6100 | M32: 0.9200 | N32: =L32*I32 -> 3.2200 | O32: =M32*I32 -> 1.8400 | P32: =N32+O32 -> 5.0600 | Q32: =K32-P32 -> 11.0960
C33: 2 | D33: 无人机 | E33: 遥控飞行喷雾机 | F33: 东莞极飞无人机科技有限公司 | G33: 3WWDZ-20A | H33: 载药量15L及以上植保无人飞机 | I33: 1 | J33: 5.5499 | K33: 5.5499 | L33: 0.0000 | M33: 2.0000 | N33: 0.0000 | O33: 2.0000 | P33: 2.0000 | Q33: 3.5499
A34: 上海农场 | B34: 上海市海丰水产养殖有限公司 | C34: 1 | D34: 养殖机械 | E34: 增氧机 | F34: 无锡市凯灵电泵厂 | G34: YL-3.0 | H34: 普通型增氧机 | I34: 216 | J34: 0.1600 | K34: 34.5600 | L34: 0.0300 | M34: 0.0150 | N34: =I34*L34 -> 6.4800 | O34: =I34*M34 -> 3.2400 | P34: =N34+O34 -> 9.7200 | Q34: =K34-P34 -> 24.8400
C35: 2 | D35: 养殖机械 | E35: 增氧机 | F35: 无锡双能达科技有限公司 | G35: SLY-1.5-1 | H35: 普通型增氧机 | I35: 270 | J35: 0.1900 | K35: 51.3000 | L35: 0.0300 | M35: 0.0150 | N35: =I35*L35 -> 8.1000 | O35: =I35*M35 -> 4.0500 | P35: =N35+O35 -> 12.1500 | Q35: =K35-P35 -> 39.1500
B36: 光明食品集团上海川东农场有限公司种植业中心 | C36: 3 | D36: 其他机械 | E36: 农业用北斗终端（含渔船用） | F36: 南京沃杨机械科技有限公司 | G36: KM-502 | H36: 液压控制转向机，直线精度±2.5cm的北斗导航自动驾驶系统 | I36: 1 | J36: 9.5000 | K36: 9.5000 | L36: 3.0000 | M36: 1.5000 | N36: =L36 -> 3.0000 | O36: =M36 -> 1.5000 | P36: =N36+O36 -> 4.5000 | Q36: =K36-P36 -> 5.0000
C37: 4 | D37: 其他机械 | E37: 农业用北斗终端（含渔船用） | F37: 上海华测导航技术股份有限公司 | G37: 领航员NX300 | H37: 电动方向盘,直线精度±10cm的北斗导航辅助驾驶系统 | I37: 2 | J37: 6.0000 | K37: 12.0000 | L37: 2.0000 | M37: 1.5000 | N37: =L37*I37 -> 4.0000 | O37: =I37*M37 -> 3.0000 | P37: =N37+O37 -> 7.0000 | Q37: =K37-P37 -> 5.0000
B38: 光明食品集团上海农场有限公司中垦种业股份有限公司 | C38: 1 | D38: 清选机 | E38: 粮食清选机 | F38: 上海三久机械有限公司 | G38: SPC-15 | H38: 生产率5-15t/h | I38: 3 | J38: 13.2700 | K38: 39.8100 | L38: 0.3400 | M38: 1.0100 | N38: 1.0200 | O38: 3.0300 | P38: 4.0500 | Q38: 35.7600
A39: 五四总公司 | B39: 上海博露农业公司 | C39: 1 | D39: 耕地机械 | E39: 铧式犁 | F39: 江苏清淮机械有限公司 | G39: 1LS-425 | H39: 单体幅宽35cm以下,3-4铧翻转犁 | I39: 1 | J39: 0.5500 | K39: 0.5500 | L39: 0.1040 | M39: 0.0260 | N39: 0.1040 | O39: 0.0260 | P39: 0.1300 | Q39: 0.4200
C40: 2 | D40: 播种机械 | E40: 水稻直播机 | F40: 滁州禾田农业机械有限公司 | G40: 2BDZ-10A(HTZ1025) | H40: 8-10行自走四轮乘坐式水稻直播机 | I40: 1 | J40: 11.1000 | K40: 11.1000 | L40: 1.5000 | M40: 2.5000 | N40: 1.5000 | O40: 2.5000 | P40: 4.0000 | Q40: 7.1000
C41: 3 | D41: 耕地机械 | E41: 圆盘犁 | F41: 徐州福莱德力农业机械有限公司 | G41: 1LY-325 | H41: 犁数3-4个，耕深≥20cm | I41: 1 | J41: 0.6400 | K41: 0.6400 | L41: 0.0000 | M41: 0.3000 | N41: 0.0000 | O41: 0.3000 | P41: 0.3000 | Q41: 0.3400
B42: 上海星辉蔬菜有限公司 | C42: 1 | D42: 干燥机械 | E42: 谷物烘干机 | F42: 金子农机（无锡）有限公司 | G42: CEL-1000 | H42: 批处理量10—20t循环式粮食烘干机 | I42: 3 | J42: 13.8000 | K42: 41.4000 | L42: 2.9500 | M42: 2.8500 | N42: 8.8500 | O42: 8.5500 | P42: 17.4000 | Q42: 24.0000
C43: 2 | D43: 植保机械 | E43: 遥控飞行喷雾机 | F43: 广州极飞科技有限公司 | G43: XP2020 | H43: 载药量15L及以上植保无人飞机 | I43: 2 | J43: 4.6999 | K43: 9.3998 | L43: 0.0000 | M43: 2.0000 | N43: 0.0000 | O43: 4.0000 | P43: 4.0000 | Q43: 5.3998
A44: 合计 | I44: =SUM(I4:I43) -> 724 | K44: =SUM(K4:K43) -> 3553.1957 | N44: =SUM(N4:N43) -> 551.2840 | O44: =SUM(O4:O43) -> 506.5060 | P44: =SUM(P4:P43) -> 1057.7900 | Q44: =SUM(Q4:Q43) -> 2495.4057
A45: 备注：1、市政府文件规定，市郊的国Ⅰ标准农机在2020年10月1日后禁止使用，所以长江、跃进等的拖拉机、联合收割机申请购置量比较大，补贴资金使用931.57万元，集团其余单位共仅使用126.22万元。
L46: 光明食品集团战略企划部
N47: 2020.12.1
